[Event "Late-Titled-Tuesday-Blitz-June-18-2024"]
[Site "Chess.com"]
[Date "2024.06.18"]
[Round "5"]
[White "szachmistrz2500"]
[Black "Lupul_Cenusiu"]
[Result "0-1"]
[WhiteElo "2495"]
[BlackElo "2683"]
[TimeControl "180+1"]
[EndTime "14:53:35 PDT"]
[Termination "Lupul_Cenusiu won by checkmate"]

1. e4 {[%clk 0:02:56.3]} 1... c6 {[%clk 0:02:59.8]} 2. d4 {[%clk 0:02:55.8]}
2... d5 {[%clk 0:03:00.3]} 3. Nc3 {[%clk 0:02:55.5]} 3... dxe4 {[%clk
0:03:00.4]} 4. Nxe4 {[%clk 0:02:56]} 4... Nf6 {[%clk 0:03:01.1]} 5. Nxf6+ {[%clk
0:02:55.6]} 5... exf6 {[%clk 0:03:02]} 6. c3 {[%clk 0:02:56]} 6... Bd6 {[%clk
0:03:01.8]} 7. Bd3 {[%clk 0:02:55.7]} 7... O-O {[%clk 0:03:02.4]} 8. Qc2 {[%clk
0:02:56]} 8... Re8+ {[%clk 0:03:03.2]} 9. Ne2 {[%clk 0:02:56]} 9... h5 {[%clk
0:03:04.1]} 10. O-O {[%clk 0:02:49.5]} 10... h4 {[%clk 0:03:04.5]} 11. h3 {[%clk
0:02:49.7]} 11... Nd7 {[%clk 0:03:04.9]} 12. c4 {[%clk 0:02:45.2]} 12... Nf8
{[%clk 0:03:04.9]} 13. c5 {[%clk 0:02:43]} 13... Bb8 {[%clk 0:03:00.9]} 14. Be3
{[%clk 0:02:35]} 14... Qc7 {[%clk 0:02:48.1]} 15. Rfe1 {[%clk 0:02:23.3]} 15...
Qh2+ {[%clk 0:02:18.3]} 16. Kf1 {[%clk 0:02:23.3]} 16... Bxh3 {[%clk 0:01:43.3]}
17. gxh3 {[%clk 0:02:12]} 17... Qxh3+ {[%clk 0:01:43.5]} 18. Kg1 {[%clk
0:02:12.1]} 18... Bh2+ {[%clk 0:01:43.6]} 19. Kh1 {[%clk 0:02:12.5]} 19... Rxe3
{[%clk 0:01:43.1]} 20. fxe3 {[%clk 0:02:09.8]} 20... Bg3+ {[%clk 0:01:43.1]} 21.
Kg1 {[%clk 0:02:10.2]} 21... Qh2+ {[%clk 0:01:43.6]} 22. Kf1 {[%clk 0:02:10.6]}
22... Qf2# {[%clk 0:01:44.2]} 0-1

[Event "Late-Titled-Tuesday-Blitz-June-18-2024"]
[Site "Chess.com"]
[Date "2024.06.18"]
[Round "5"]
[White "ToddBryant"]
[Black "BillCoe"]
[Result "0-1"]
[WhiteElo "2367"]
[BlackElo "2103"]
[TimeControl "180+1"]
[EndTime "14:53:49 PDT"]
[Termination "BillCoe won by checkmate"]

1. e4 {[%clk 0:02:57.8]} 1... c5 {[%clk 0:03:00.1]} 2. Nf3 {[%clk 0:02:57.1]}
2... e6 {[%clk 0:03:00.6]} 3. d4 {[%clk 0:02:57.4]} 3... cxd4 {[%clk 0:03:01.5]}
4. Nxd4 {[%clk 0:02:57.8]} 4... a6 {[%clk 0:03:02.2]} 5. Bd3 {[%clk 0:02:58.2]}
5... b5 {[%clk 0:03:01.8]} 6. O-O {[%clk 0:02:58.2]} 6... Bb7 {[%clk 0:03:02.4]}
7. Qe2 {[%clk 0:02:55.8]} 7... Qc7 {[%clk 0:03:02.4]} 8. c4 {[%clk 0:02:48.4]}
8... bxc4 {[%clk 0:02:58.4]} 9. Bxc4 {[%clk 0:02:49.3]} 9... Bc5 {[%clk
0:02:52.1]} 10. Nb3 {[%clk 0:02:43.2]} 10... Ba7 {[%clk 0:02:48.2]} 11. Nc3
{[%clk 0:02:43]} 11... Ne7 {[%clk 0:02:46.2]} 12. Bd3 {[%clk 0:02:38]} 12...
Nbc6 {[%clk 0:02:39.6]} 13. Qg4 {[%clk 0:02:29]} 13... Ng6 {[%clk 0:02:32.1]}
14. h4 {[%clk 0:02:21]} 14... Nce5 {[%clk 0:02:29.1]} 15. Qg3 {[%clk 0:02:21.5]}
15... Rc8 {[%clk 0:02:19.7]} 16. h5 {[%clk 0:02:19.7]} 16... Nxd3 {[%clk
0:02:17.6]} 17. hxg6 {[%clk 0:02:10.8]} 17... Qxg3 {[%clk 0:02:15]} 18. gxf7+
{[%clk 0:02:11.7]} 18... Kxf7 {[%clk 0:02:14.4]} 19. Be3 {[%clk 0:02:11.4]}
19... Bxe3 {[%clk 0:02:13]} 20. fxe3+ {[%clk 0:02:12.3]} 20... Ke7 {[%clk
0:02:09]} 21. Rf3 {[%clk 0:02:10.2]} 21... Qg5 {[%clk 0:02:03.9]} 22. Raf1
{[%clk 0:02:10.1]} 22... Rhf8 {[%clk 0:02:02.6]} 23. Ne2 {[%clk 0:02:10.7]}
23... Ne5 {[%clk 0:01:59.1]} 24. Rg3 {[%clk 0:02:09]} 24... Rxf1+ {[%clk
0:01:55.9]} 25. Kxf1 {[%clk 0:02:09.9]} 25... Ng4 {[%clk 0:01:49.3]} 26. Nf4
{[%clk 0:02:09.6]} 26... Nxe3+ {[%clk 0:01:48]} 27. Rxe3 {[%clk 0:02:09.3]}
27... Qxf4+ {[%clk 0:01:47.3]} 28. Rf3 {[%clk 0:02:10.2]} 28... Qxe4 {[%clk
0:01:46.4]} 29. Nd2 {[%clk 0:02:10]} 29... Rc1+ {[%clk 0:01:44.7]} 30. Kf2
{[%clk 0:02:09.9]} 30... Qe1# {[%clk 0:01:43.7]} 0-1

[Event "Late-Titled-Tuesday-Blitz-June-18-2024"]
[Site "Chess.com"]
[Date "2024.06.18"]
[Round "5"]
[White "ZverevLev"]
[Black "Hikaru"]
[Result "0-1"]
[WhiteElo "2732"]
[BlackElo "3295"]
[TimeControl "180+1"]
[EndTime "14:54:05 PDT"]
[Termination "Hikaru won by resignation"]

1. e4 {[%clk 0:03:00.9]} 1... g6 {[%clk 0:03:00.9]} 2. d4 {[%clk 0:03:00.5]}
2... Bg7 {[%clk 0:03:00.7]} 3. Nc3 {[%clk 0:03:00.4]} 3... c6 {[%clk 0:03:00.7]}
4. Be3 {[%clk 0:02:59.7]} 4... d5 {[%clk 0:03:01.3]} 5. e5 {[%clk 0:02:58.8]}
5... Nh6 {[%clk 0:03:00]} 6. Qd2 {[%clk 0:02:57.9]} 6... Nf5 {[%clk 0:02:59.7]}
7. O-O-O {[%clk 0:02:54.4]} 7... Nxe3 {[%clk 0:02:58]} 8. Qxe3 {[%clk
0:02:55.3]} 8... b5 {[%clk 0:02:57.7]} 9. Bd3 {[%clk 0:02:44.1]} 9... Nd7 {[%clk
0:02:56.8]} 10. f4 {[%clk 0:02:39.6]} 10... Qa5 {[%clk 0:02:55]} 11. Kb1 {[%clk
0:02:38.9]} 11... Nb6 {[%clk 0:02:54.1]} 12. Nf3 {[%clk 0:02:35.8]} 12... Rb8
{[%clk 0:02:54.2]} 13. Nd2 {[%clk 0:02:19.2]} 13... Nc4 {[%clk 0:02:41.1]} 14.
Qe2 {[%clk 0:02:14.9]} 14... b4 {[%clk 0:01:35.1]} 15. Nb3 {[%clk 0:02:08.6]}
15... bxc3 {[%clk 0:01:30.7]} 16. Nxa5 {[%clk 0:02:05.2]} 16... Na3+ {[%clk
0:01:26.6]} 17. Kc1 {[%clk 0:02:05.2]} 17... Rxb2 {[%clk 0:01:25.1]} 0-1

[Event "Late-Titled-Tuesday-Blitz-June-18-2024"]
[Site "Chess.com"]
[Date "2024.06.18"]
[Round "5"]
[White "i_like_explosions"]
[Black "LaStreetCmaMaison"]
[Result "1-0"]
[WhiteElo "2443"]
[BlackElo "2605"]
[TimeControl "180+1"]
[EndTime "14:54:05 PDT"]
[Termination "i_like_explosions won by resignation"]

1. d4 {[%clk 0:03:00.9]} 1... d5 {[%clk 0:03:00.3]} 2. c4 {[%clk 0:03:00.8]}
2... e5 {[%clk 0:03:01]} 3. dxe5 {[%clk 0:03:01]} 3... d4 {[%clk 0:03:01.9]} 4.
Nf3 {[%clk 0:03:00.9]} 4... Nc6 {[%clk 0:03:02.3]} 5. a3 {[%clk 0:03:01.5]} 5...
Nge7 {[%clk 0:03:01.6]} 6. b4 {[%clk 0:02:55.7]} 6... Ng6 {[%clk 0:03:02]} 7.
Bb2 {[%clk 0:02:55]} 7... a5 {[%clk 0:03:01.9]} 8. b5 {[%clk 0:02:52.5]} 8...
Ncxe5 {[%clk 0:03:02.6]} 9. Nxe5 {[%clk 0:02:52.4]} 9... Nxe5 {[%clk 0:03:03.5]}
10. Qxd4 {[%clk 0:02:50.5]} 10... Qxd4 {[%clk 0:03:03.9]} 11. Bxd4 {[%clk
0:02:51.2]} 11... Nxc4 {[%clk 0:03:04.7]} 12. e3 {[%clk 0:02:51.8]} 12... Nd6
{[%clk 0:03:04.8]} 13. Be2 {[%clk 0:02:46.7]} 13... f6 {[%clk 0:03:05.3]} 14.
O-O {[%clk 0:02:45.6]} 14... Bf5 {[%clk 0:03:05.6]} 15. Nc3 {[%clk 0:02:44.2]}
15... Be6 {[%clk 0:03:04.8]} 16. Bf3 {[%clk 0:02:40.6]} 16... Be7 {[%clk
0:03:04.6]} 17. Bc5 {[%clk 0:02:32.8]} 17... Rb8 {[%clk 0:03:05.1]} 18. Bd4
{[%clk 0:02:28.7]} 18... b6 {[%clk 0:03:04.8]} 19. Rfc1 {[%clk 0:02:27.8]} 19...
Kf7 {[%clk 0:03:05.2]} 20. a4 {[%clk 0:02:28.1]} 20... Rhc8 {[%clk 0:03:05.4]}
21. Nd5 {[%clk 0:02:27.9]} 21... Bd8 {[%clk 0:03:03.5]} 22. Nf4 {[%clk
0:02:24.1]} 22... Bb3 {[%clk 0:03:02.7]} 23. Bc6 {[%clk 0:02:06.5]} 23... g6
{[%clk 0:03:02.8]} 24. Bd7 {[%clk 0:02:02.8]} 24... g5 {[%clk 0:03:01.9]} 25.
Bxc8 {[%clk 0:02:01.7]} 25... gxf4 {[%clk 0:03:00.7]} 26. Bd7 {[%clk 0:01:59.4]}
26... fxe3 {[%clk 0:03:01.3]} 27. Bxe3 {[%clk 0:01:59.1]} 27... f5 {[%clk
0:03:01.2]} 28. Bf4 {[%clk 0:01:58.5]} 28... Ke7 {[%clk 0:03:00.4]} 29. Bc6
{[%clk 0:01:41.9]} 29... Ke6 {[%clk 0:02:58.5]} 30. Ra3 {[%clk 0:01:41.9]} 30...
Bd5 {[%clk 0:02:55.6]} 31. Re3+ {[%clk 0:01:42.2]} 31... Ne4 {[%clk 0:02:55.9]}
32. f3 {[%clk 0:01:40.4]} 32... Bf6 {[%clk 0:02:51]} 33. fxe4 {[%clk 0:01:21.5]}
33... fxe4 {[%clk 0:02:51.9]} 34. Bxd5+ {[%clk 0:01:19]} 34... Kxd5 {[%clk
0:02:52.8]} 35. Ree1 {[%clk 0:01:17.7]} 35... Rf8 {[%clk 0:02:51.4]} 36. Red1+
{[%clk 0:01:14.4]} 36... Ke6 {[%clk 0:02:52]} 37. Rc6+ {[%clk 0:01:13.6]} 37...
Kf5 {[%clk 0:02:52.6]} 38. Be3 {[%clk 0:01:13.8]} 38... Ke5 {[%clk 0:02:49]} 39.
Bd4+ {[%clk 0:01:12.7]} 1-0

[Event "Late-Titled-Tuesday-Blitz-June-18-2024"]
[Site "Chess.com"]
[Date "2024.06.18"]
[Round "5"]
[White "egnfanclub"]
[Black "Chessdreamer2020"]
[Result "0-1"]
[WhiteElo "2345"]
[BlackElo "2567"]
[TimeControl "180+1"]
[EndTime "14:54:17 PDT"]
[Termination "Chessdreamer2020 won by resignation"]

1. e4 {[%clk 0:02:53.9]} 1... d6 {[%clk 0:03:00.6]} 2. Nc3 {[%clk 0:02:52.8]}
2... Nf6 {[%clk 0:03:01]} 3. f4 {[%clk 0:02:52.6]} 3... d5 {[%clk 0:03:01.3]} 4.
e5 {[%clk 0:02:52.2]} 4... d4 {[%clk 0:03:01.7]} 5. exf6 {[%clk 0:02:51.8]} 5...
dxc3 {[%clk 0:03:01.8]} 6. bxc3 {[%clk 0:02:49]} 6... exf6 {[%clk 0:03:00]} 7.
Nf3 {[%clk 0:02:47.6]} 7... Bd6 {[%clk 0:02:59.8]} 8. d4 {[%clk 0:02:47.1]} 8...
O-O {[%clk 0:03:00.1]} 9. Be2 {[%clk 0:02:47.1]} 9... c6 {[%clk 0:02:59.1]} 10.
O-O {[%clk 0:02:47]} 10... Qc7 {[%clk 0:02:59.3]} 11. g3 {[%clk 0:02:42.4]}
11... Bh3 {[%clk 0:02:59.2]} 12. Rf2 {[%clk 0:02:42.8]} 12... Nd7 {[%clk
0:02:57.2]} 13. Bf1 {[%clk 0:02:42]} 13... Bxf1 {[%clk 0:02:55.4]} 14. Qxf1
{[%clk 0:02:42.9]} 14... Nb6 {[%clk 0:02:55.7]} 15. Nd2 {[%clk 0:02:37.9]} 15...
c5 {[%clk 0:02:55.6]} 16. Ne4 {[%clk 0:02:33.5]} 16... Rfd8 {[%clk 0:02:51.7]}
17. Nxd6 {[%clk 0:02:32.6]} 17... Rxd6 {[%clk 0:02:51]} 18. Be3 {[%clk
0:02:29.5]} 18... Nd5 {[%clk 0:02:48.7]} 19. Bd2 {[%clk 0:02:14.8]} 19... cxd4
{[%clk 0:02:25.3]} 20. cxd4 {[%clk 0:02:14.4]} 20... Rc6 {[%clk 0:02:21.2]} 21.
Qg2 {[%clk 0:02:01.2]} 21... Rd8 {[%clk 0:02:19.8]} 22. Be1 {[%clk 0:01:54.2]}
22... Ne3 {[%clk 0:02:16.9]} 23. Qe4 {[%clk 0:01:49.1]} 23... Nxc2 {[%clk
0:02:09.4]} 24. Rc1 {[%clk 0:01:40.8]} 24... Nxd4 {[%clk 0:02:04.1]} 0-1

[Event "Late-Titled-Tuesday-Blitz-June-18-2024"]
[Site "Chess.com"]
[Date "2024.06.18"]
[Round "5"]
[White "urano56"]
[Black "Renatoforf"]
[Result "1-0"]
[WhiteElo "2392"]
[BlackElo "2121"]
[TimeControl "180+1"]
[EndTime "14:54:56 PDT"]
[Termination "urano56 won by resignation"]

1. Nf3 {[%clk 0:02:46.1]} 1... c5 {[%clk 0:02:59.2]} 2. b3 {[%clk 0:02:43.7]}
2... Nc6 {[%clk 0:02:58.2]} 3. Bb2 {[%clk 0:02:43.9]} 3... d6 {[%clk 0:02:56.7]}
4. e3 {[%clk 0:02:44.4]} 4... e5 {[%clk 0:02:55.9]} 5. d3 {[%clk 0:02:44.9]}
5... Nge7 {[%clk 0:02:54.1]} 6. Nbd2 {[%clk 0:02:45.3]} 6... g6 {[%clk
0:02:52.6]} 7. d4 {[%clk 0:02:45]} 7... Bg7 {[%clk 0:02:50.4]} 8. dxc5 {[%clk
0:02:43.7]} 8... dxc5 {[%clk 0:02:49.3]} 9. Be2 {[%clk 0:02:41.7]} 9... O-O
{[%clk 0:02:47.7]} 10. O-O {[%clk 0:02:36.3]} 10... e4 {[%clk 0:02:33.4]} 11.
Bxg7 {[%clk 0:02:35.9]} 11... exf3 {[%clk 0:02:32.3]} 12. Bxf8 {[%clk
0:02:36.1]} 12... fxe2 {[%clk 0:02:31.1]} 13. Qxe2 {[%clk 0:02:36.4]} 13... Qxf8
{[%clk 0:02:29.6]} 14. Rad1 {[%clk 0:02:31.1]} 14... b6 {[%clk 0:02:28.2]} 15.
Nc4 {[%clk 0:02:28.5]} 15... Be6 {[%clk 0:02:26.3]} 16. Nd6 {[%clk 0:02:23.9]}
16... Nf5 {[%clk 0:02:21.6]} 17. Nxf5 {[%clk 0:02:21.4]} 17... Bxf5 {[%clk
0:02:20.9]} 18. c3 {[%clk 0:02:22.3]} 18... Rd8 {[%clk 0:02:16.5]} 19. e4 {[%clk
0:02:21.7]} 19... Be6 {[%clk 0:02:15.2]} 20. f4 {[%clk 0:02:13.7]} 20... Rxd1
{[%clk 0:02:12.9]} 21. Rxd1 {[%clk 0:02:14.6]} 21... h5 {[%clk 0:02:09]} 22. Qb5
{[%clk 0:02:09.6]} 22... Qc8 {[%clk 0:02:03]} 23. Qd3 {[%clk 0:02:05.3]} 23...
Kg7 {[%clk 0:01:57.5]} 24. Qd6 {[%clk 0:01:59.8]} 24... Bg4 {[%clk 0:01:54.1]}
25. Rd2 {[%clk 0:01:56.6]} 25... Qe6 {[%clk 0:01:52.2]} 26. Qd3 {[%clk
0:01:53.2]} 26... Ne7 {[%clk 0:01:38.2]} 27. h3 {[%clk 0:01:47.8]} 1-0

[Event "Late-Titled-Tuesday-Blitz-June-18-2024"]
[Site "Chess.com"]
[Date "2024.06.18"]
[Round "5"]
[White "VaglioSagan"]
[Black "GianmarcoVaR"]
[Result "1-0"]
[WhiteElo "2516"]
[BlackElo "2687"]
[TimeControl "180+1"]
[EndTime "14:54:59 PDT"]
[Termination "VaglioSagan won by resignation"]

1. d4 {[%clk 0:03:00.9]} 1... g6 {[%clk 0:02:51.6]} 2. e4 {[%clk 0:02:58.9]}
2... Bg7 {[%clk 0:02:51.5]} 3. Nc3 {[%clk 0:02:58.1]} 3... d6 {[%clk 0:02:50.8]}
4. Bc4 {[%clk 0:02:57.9]} 4... Nc6 {[%clk 0:02:41.3]} 5. Nge2 {[%clk 0:02:37.3]}
5... Nf6 {[%clk 0:02:24.4]} 6. f3 {[%clk 0:02:34.1]} 6... Kd7 {[%clk 0:02:09]}
7. e5 {[%clk 0:02:23.6]} 7... Ne8 {[%clk 0:01:25.7]} 8. Bxf7 {[%clk 0:02:14.2]}
8... e6 {[%clk 0:01:26.1]} 9. d5 {[%clk 0:01:35.1]} 9... Nxe5 {[%clk 0:01:20.9]}
10. dxe6+ {[%clk 0:01:28.2]} 10... Ke7 {[%clk 0:01:10.1]} 11. Nd5+ {[%clk
0:01:28.3]} 11... Kf8 {[%clk 0:01:10.3]} 12. e7+ {[%clk 0:01:29]} 12... Qxe7
{[%clk 0:01:10.8]} 13. Nxe7 {[%clk 0:01:29.7]} 13... Kxe7 {[%clk 0:00:55.5]} 14.
Bb3 {[%clk 0:01:27.6]} 1-0

[Event "Late-Titled-Tuesday-Blitz-June-18-2024"]
[Site "Chess.com"]
[Date "2024.06.18"]
[Round "5"]
[White "ajedrezsinlimites"]
[Black "Laico"]
[Result "1-0"]
[WhiteElo "2630"]
[BlackElo "2440"]
[TimeControl "180+1"]
[EndTime "14:55:05 PDT"]
[Termination "ajedrezsinlimites won by resignation"]

1. e4 {[%clk 0:03:00.9]} 1... e6 {[%clk 0:03:00.4]} 2. d4 {[%clk 0:03:00.6]}
2... d5 {[%clk 0:03:01.1]} 3. exd5 {[%clk 0:03:01.4]} 3... exd5 {[%clk
0:03:01.9]} 4. Nf3 {[%clk 0:02:58.7]} 4... Bg4 {[%clk 0:03:01]} 5. Be2 {[%clk
0:02:58.8]} 5... Nc6 {[%clk 0:03:00.2]} 6. O-O {[%clk 0:02:58.8]} 6... Qd7
{[%clk 0:03:00.5]} 7. Bf4 {[%clk 0:02:58.8]} 7... f6 {[%clk 0:02:58.5]} 8. Nbd2
{[%clk 0:02:57.5]} 8... h5 {[%clk 0:02:57.1]} 9. h3 {[%clk 0:02:57.2]} 9... Bf5
{[%clk 0:02:56.5]} 10. c4 {[%clk 0:02:56.9]} 10... g5 {[%clk 0:02:54.2]} 11. Bh2
{[%clk 0:02:56.6]} 11... g4 {[%clk 0:02:39.3]} 12. cxd5 {[%clk 0:02:53.2]} 12...
Nce7 {[%clk 0:02:29.3]} 13. Nh4 {[%clk 0:02:42.4]} 13... gxh3 {[%clk 0:02:28.7]}
14. Nxf5 {[%clk 0:02:41.9]} 14... hxg2 {[%clk 0:02:21.9]} 15. Re1 {[%clk
0:02:25.6]} 15... Qxf5 {[%clk 0:02:15.8]} 16. Bxc7 {[%clk 0:02:21.5]} 16... Kd7
{[%clk 0:01:11.2]} 17. Bh2 {[%clk 0:02:15.5]} 17... a6 {[%clk 0:00:49.7]} 18.
Qa4+ {[%clk 0:02:12.5]} 18... Kd8 {[%clk 0:00:48.7]} 19. Qa5+ {[%clk 0:02:10.1]}
19... Ke8 {[%clk 0:00:33.4]} 20. Qa4+ {[%clk 0:02:08.9]} 20... Kd8 {[%clk
0:00:32.9]} 21. Bb5 {[%clk 0:01:57.6]} 21... Nxd5 {[%clk 0:00:27.4]} 1-0

[Event "Late-Titled-Tuesday-Blitz-June-18-2024"]
[Site "Chess.com"]
[Date "2024.06.18"]
[Round "5"]
[White "jamengrand"]
[Black "EternalNight8"]
[Result "1-0"]
[WhiteElo "2307"]
[BlackElo "2398"]
[TimeControl "180+1"]
[EndTime "14:55:08 PDT"]
[Termination "jamengrand won by resignation"]

1. e4 {[%clk 0:03:00.9]} 1... c5 {[%clk 0:02:58.9]} 2. Nf3 {[%clk 0:03:01.2]}
2... d6 {[%clk 0:02:58.9]} 3. d4 {[%clk 0:03:01.4]} 3... cxd4 {[%clk 0:02:59.8]}
4. Nxd4 {[%clk 0:03:01.9]} 4... Nf6 {[%clk 0:03:00.2]} 5. Nc3 {[%clk 0:03:02.2]}
5... Nc6 {[%clk 0:03:00.9]} 6. Bg5 {[%clk 0:02:59.3]} 6... Bd7 {[%clk
0:03:00.3]} 7. Nb3 {[%clk 0:02:58.6]} 7... h6 {[%clk 0:02:53.8]} 8. Bxf6 {[%clk
0:02:57.5]} 8... gxf6 {[%clk 0:02:53.4]} 9. Qh5 {[%clk 0:02:57.5]} 9... Bg7
{[%clk 0:02:36.4]} 10. O-O-O {[%clk 0:02:52]} 10... Rc8 {[%clk 0:02:32.1]} 11.
Bc4 {[%clk 0:02:47.6]} 11... Ne5 {[%clk 0:02:30.1]} 12. Bd5 {[%clk 0:02:45.5]}
12... Qc7 {[%clk 0:02:09.7]} 13. h3 {[%clk 0:02:33]} 13... e6 {[%clk 0:02:06.6]}
14. f4 {[%clk 0:02:33.3]} 14... Nc6 {[%clk 0:01:16]} 15. Bxc6 {[%clk 0:02:25.4]}
15... bxc6 {[%clk 0:01:16.9]} 16. Rhf1 {[%clk 0:01:49.1]} 16... Qb6 {[%clk
0:00:42.4]} 17. Rxd6 {[%clk 0:01:42.1]} 17... Ke7 {[%clk 0:00:41.4]} 18. Rxd7+
{[%clk 0:01:41.4]} 18... Kxd7 {[%clk 0:00:38.2]} 19. Qxf7+ {[%clk 0:01:41.7]}
19... Kd8 {[%clk 0:00:38.5]} 20. Rd1+ {[%clk 0:01:40.6]} 1-0

[Event "Late-Titled-Tuesday-Blitz-June-18-2024"]
[Site "Chess.com"]
[Date "2024.06.18"]
[Round "5"]
[White "only_strong_moves"]
[Black "Chaubunagungamaug1"]
[Result "0-1"]
[WhiteElo "2633"]
[BlackElo "2483"]
[TimeControl "180+1"]
[EndTime "14:55:11 PDT"]
[Termination "Chaubunagungamaug1 won by resignation"]

1. Nc3 {[%clk 0:02:58]} 1... c5 {[%clk 0:02:53.2]} 2. Nf3 {[%clk 0:02:57.7]}
2... Nf6 {[%clk 0:02:47.8]} 3. d4 {[%clk 0:02:57.3]} 3... d5 {[%clk 0:02:42.7]}
4. Bf4 {[%clk 0:02:56.2]} 4... a6 {[%clk 0:02:20.3]} 5. dxc5 {[%clk 0:02:56.4]}
5... e6 {[%clk 0:02:12.2]} 6. Na4 {[%clk 0:02:56.5]} 6... Nbd7 {[%clk
0:02:05.6]} 7. b4 {[%clk 0:02:55.8]} 7... a5 {[%clk 0:01:57.7]} 8. a3 {[%clk
0:02:55.8]} 8... Ne4 {[%clk 0:01:51.4]} 9. e3 {[%clk 0:02:51.6]} 9... Be7 {[%clk
0:01:43.9]} 10. Bd3 {[%clk 0:02:51.5]} 10... Bf6 {[%clk 0:01:39.3]} 11. Bxe4
{[%clk 0:02:16.7]} 11... dxe4 {[%clk 0:01:36.8]} 12. Bd6 {[%clk 0:02:05]} 12...
exf3 {[%clk 0:01:29.5]} 13. Ra2 {[%clk 0:01:54.4]} 13... fxg2 {[%clk 0:01:18.5]}
14. Rg1 {[%clk 0:01:54.4]} 14... b5 {[%clk 0:01:03.2]} 15. cxb6 {[%clk
0:01:43.6]} 15... Nxb6 {[%clk 0:01:02.3]} 16. Nc5 {[%clk 0:01:42.8]} 16... Nc4
{[%clk 0:00:55.5]} 17. Bf4 {[%clk 0:01:42.3]} 17... Qxd1+ {[%clk 0:00:54.5]} 18.
Kxd1 {[%clk 0:01:43.2]} 18... axb4 {[%clk 0:00:54.1]} 19. Rxg2 {[%clk
0:01:42.4]} 19... Rxa3 {[%clk 0:00:52.4]} 20. Rxa3 {[%clk 0:01:41.5]} 20... bxa3
{[%clk 0:00:53.1]} 21. Nb3 {[%clk 0:01:37.7]} 21... a2 {[%clk 0:00:51.2]} 22.
Ke2 {[%clk 0:01:35.8]} 22... Na5 {[%clk 0:00:47.5]} 0-1

[Event "Late-Titled-Tuesday-Blitz-June-18-2024"]
[Site "Chess.com"]
[Date "2024.06.18"]
[Round "5"]
[White "K_A_S_T_O_R"]
[Black "ahkashefi2800"]
[Result "1-0"]
[WhiteElo "2837"]
[BlackElo "2617"]
[TimeControl "180+1"]
[EndTime "14:55:17 PDT"]
[Termination "K_A_S_T_O_R won on time"]

1. e4 {[%clk 0:03:00.9]} 1... c6 {[%clk 0:02:43.7]} 2. d4 {[%clk 0:02:59.4]}
2... d5 {[%clk 0:02:44]} 3. exd5 {[%clk 0:02:59.6]} 3... cxd5 {[%clk 0:02:44.9]}
4. c4 {[%clk 0:03:00]} 4... e6 {[%clk 0:02:44.3]} 5. Nc3 {[%clk 0:02:59.7]} 5...
Nf6 {[%clk 0:02:44.8]} 6. Nf3 {[%clk 0:03:00]} 6... Bb4 {[%clk 0:02:44.5]} 7.
cxd5 {[%clk 0:03:00]} 7... Nxd5 {[%clk 0:02:43.9]} 8. Qc2 {[%clk 0:03:00]} 8...
O-O {[%clk 0:02:42.5]} 9. Bd3 {[%clk 0:02:59.8]} 9... h6 {[%clk 0:02:40.7]} 10.
O-O {[%clk 0:02:59.6]} 10... Bxc3 {[%clk 0:02:36]} 11. bxc3 {[%clk 0:02:59.4]}
11... b6 {[%clk 0:02:36.6]} 12. Ne5 {[%clk 0:02:48.5]} 12... Bb7 {[%clk
0:02:35.4]} 13. Ba3 {[%clk 0:02:45.6]} 13... Qg5 {[%clk 0:02:10.5]} 14. Bh7+
{[%clk 0:02:31.6]} 14... Kh8 {[%clk 0:02:09.8]} 15. Bxf8 {[%clk 0:02:32.1]}
15... Qh5 {[%clk 0:00:21.5]} 16. g4 {[%clk 0:02:18.7]} 16... Nf4 {[%clk
0:00:12.2]} 17. f3 {[%clk 0:02:17.5]} 17... Qxe5 {[%clk 0:00:01.9]} 18. dxe5
{[%clk 0:02:16.3]} 18... Nd7 {[%clk 0:00:02.6]} 19. Bd6 {[%clk 0:02:16]} 19...
g6 {[%clk 0:00:02.2]} 20. Qd2 {[%clk 0:02:14.7]} 20... Nd5 {[%clk 0:00:01.4]}
21. Qxh6 {[%clk 0:02:13.9]} 1-0

[Event "Late-Titled-Tuesday-Blitz-June-18-2024"]
[Site "Chess.com"]
[Date "2024.06.18"]
[Round "5"]
[White "WildTricks"]
[Black "elis06"]
[Result "1-0"]
[WhiteElo "2707"]
[BlackElo "2362"]
[TimeControl "180+1"]
[EndTime "14:55:22 PDT"]
[Termination "WildTricks won by checkmate"]

1. e4 {[%clk 0:03:00.9]} 1... c6 {[%clk 0:02:57]} 2. d4 {[%clk 0:02:58.8]} 2...
d5 {[%clk 0:02:56.2]} 3. e5 {[%clk 0:02:59]} 3... Bf5 {[%clk 0:02:54.9]} 4. Nf3
{[%clk 0:02:58.5]} 4... e6 {[%clk 0:02:54.6]} 5. Be2 {[%clk 0:02:58.7]} 5... Nd7
{[%clk 0:02:52.2]} 6. O-O {[%clk 0:02:57.3]} 6... Ne7 {[%clk 0:02:52]} 7. Nbd2
{[%clk 0:02:54.2]} 7... c5 {[%clk 0:02:49.1]} 8. c4 {[%clk 0:02:53.5]} 8... dxc4
{[%clk 0:02:33.2]} 9. Nxc4 {[%clk 0:02:52.1]} 9... Nc6 {[%clk 0:02:29.1]} 10.
Bg5 {[%clk 0:02:45.2]} 10... Be7 {[%clk 0:02:06.1]} 11. Nd6+ {[%clk 0:02:43.6]}
11... Kf8 {[%clk 0:01:58.4]} 12. Nxb7 {[%clk 0:02:35.6]} 12... Qb6 {[%clk
0:01:50.7]} 13. Bxe7+ {[%clk 0:02:32.7]} 13... Kxe7 {[%clk 0:01:50.1]} 14. Nxc5
{[%clk 0:02:23.4]} 14... Nxc5 {[%clk 0:01:48.9]} 15. dxc5 {[%clk 0:02:24.3]}
15... Qxc5 {[%clk 0:01:49.1]} 16. Rc1 {[%clk 0:02:22.1]} 16... Qb4 {[%clk
0:01:04.5]} 17. Rxc6 {[%clk 0:02:17.2]} 17... Rhd8 {[%clk 0:01:03.9]} 18. Qb3
{[%clk 0:02:11]} 18... Qxb3 {[%clk 0:00:59]} 19. axb3 {[%clk 0:02:11.9]} 19...
Rab8 {[%clk 0:00:58.2]} 20. Bc4 {[%clk 0:02:09.8]} 20... Be4 {[%clk 0:00:57.1]}
21. Rc7+ {[%clk 0:02:08.8]} 21... Kf8 {[%clk 0:00:57.2]} 22. Ng5 {[%clk
0:01:53.7]} 22... Bg6 {[%clk 0:00:54.4]} 23. Bxe6 {[%clk 0:01:51.1]} 23... fxe6
{[%clk 0:00:50.6]} 24. Nxe6+ {[%clk 0:01:52]} 24... Ke8 {[%clk 0:00:50.8]} 25.
Nxg7+ {[%clk 0:01:52]} 25... Kf8 {[%clk 0:00:50.4]} 26. Ne6+ {[%clk 0:01:52.3]}
26... Kg8 {[%clk 0:00:50.6]} 27. Nxd8 {[%clk 0:01:49.9]} 27... Rxd8 {[%clk
0:00:51.5]} 28. Rxa7 {[%clk 0:01:49.3]} 28... Rd2 {[%clk 0:00:51.5]} 29. h3
{[%clk 0:01:45.5]} 29... Rxb2 {[%clk 0:00:51.4]} 30. Rc1 {[%clk 0:01:44.1]}
30... Rxb3 {[%clk 0:00:48.6]} 31. Rc8+ {[%clk 0:01:43]} 31... Be8 {[%clk
0:00:48.7]} 32. Rxe8# {[%clk 0:01:43.9]} 1-0